[Event "*** Titled Tuesday Blitz"]
[Site "Chess.com"]
[Date "2020.11.10"]
[Round "11"]
[White "orestn"]
[Black "Semetey"]
[Result "0-1"]
[WhiteElo "2295"]
[BlackElo "2588"]
[TimeControl "180+1"]
[EndTime "12:10:01 PST"]
[Termination "Semetey won by resignation"]

1. e4 {[%clk 0:03:00.9]} 1... e5 {[%clk 0:02:59.7]} 2. Nf3 {[%clk 0:03:00.7]}
2... Nc6 {[%clk 0:03:00.6]} 3. Bb5 {[%clk 0:03:00.3]} 3... a6 {[%clk 0:03:00.5]}
4. Ba4 {[%clk 0:03:00.3]} 4... Nf6 {[%clk 0:03:00.9]} 5. O-O {[%clk 0:02:59.7]}
5... Be7 {[%clk 0:03:01.3]} 6. Nc3 {[%clk 0:02:51]} 6... b5 {[%clk 0:02:58.6]}
7. Bb3 {[%clk 0:02:50.9]} 7... O-O {[%clk 0:02:58.5]} 8. a3 {[%clk 0:02:46.7]}
8... d6 {[%clk 0:02:58]} 9. h3 {[%clk 0:02:44.7]} 9... Be6 {[%clk 0:02:58]} 10.
Ba2 {[%clk 0:02:36.9]} 10... Qd7 {[%clk 0:02:49.2]} 11. d3 {[%clk 0:02:29.3]}
11... d5 {[%clk 0:02:47.8]} 12. exd5 {[%clk 0:02:25.6]} 12... Nxd5 {[%clk
0:02:48.7]} 13. Re1 {[%clk 0:02:04.3]} 13... Nxc3 {[%clk 0:02:38.4]} 14. bxc3
{[%clk 0:02:03.9]} 14... Bxa2 {[%clk 0:02:38.1]} 15. Rxa2 {[%clk 0:02:03.4]}
15... Bd6 {[%clk 0:02:34.1]} 16. Bb2 {[%clk 0:01:51.6]} 16... Rae8 {[%clk
0:02:33.2]} 17. a4 {[%clk 0:01:45]} 17... f5 {[%clk 0:02:26.5]} 18. axb5 {[%clk
0:01:43.4]} 18... axb5 {[%clk 0:02:27.4]} 19. Ra6 {[%clk 0:01:35.9]} 19... e4
{[%clk 0:02:22.6]} 20. Nd4 {[%clk 0:01:30.2]} 20... Nxd4 {[%clk 0:02:13.7]} 21.
cxd4 {[%clk 0:01:29.1]} 21... exd3 {[%clk 0:02:13.9]} 22. cxd3 {[%clk 0:01:18]}
22... Rxe1+ {[%clk 0:02:12.4]} 23. Qxe1 {[%clk 0:01:17.6]} 23... Re8 {[%clk
0:02:13.3]} 24. Qd1 {[%clk 0:01:15.3]} 24... Qe7 {[%clk 0:02:06.3]} 25. Ra1
{[%clk 0:01:04.8]} 25... Qe2 {[%clk 0:01:56.2]} 26. Qb3+ {[%clk 0:01:02.1]}
26... Kh8 {[%clk 0:01:55.7]} 27. d5 {[%clk 0:00:55.4]} 27... Qe1+ {[%clk
0:01:54]} 0-1

[Event "*** Titled Tuesday Blitz"]
[Site "Chess.com"]
[Date "2020.11.10"]
[Round "11"]
[White "MarcoRiehle"]
[Black "azikom"]
[Result "0-1"]
[WhiteElo "2668"]
[BlackElo "2581"]
[TimeControl "180+1"]
[EndTime "12:10:07 PST"]
[Termination "azikom won by resignation"]

1. e4 {[%clk 0:03:00.9]} 1... e5 {[%clk 0:02:58.8]} 2. Nf3 {[%clk 0:03:00.6]}
2... Nc6 {[%clk 0:02:59.5]} 3. d4 {[%clk 0:03:00.6]} 3... exd4 {[%clk
0:02:58.7]} 4. Bc4 {[%clk 0:03:01.2]} 4... d6 {[%clk 0:02:56.9]} 5. c3 {[%clk
0:03:01]} 5... d3 {[%clk 0:02:56]} 6. O-O {[%clk 0:02:56.8]} 6... Be6 {[%clk
0:02:49.4]} 7. Bxd3 {[%clk 0:02:55]} 7... h6 {[%clk 0:02:44]} 8. Nd4 {[%clk
0:02:54.6]} 8... Bd7 {[%clk 0:02:41.8]} 9. Re1 {[%clk 0:02:50.8]} 9... Nf6
{[%clk 0:02:40.1]} 10. Nxc6 {[%clk 0:02:49.3]} 10... Bxc6 {[%clk 0:02:37.2]} 11.
e5 {[%clk 0:02:50.2]} 11... dxe5 {[%clk 0:02:37.2]} 12. Rxe5+ {[%clk 0:02:51.1]}
12... Be7 {[%clk 0:02:37.6]} 13. Qe2 {[%clk 0:02:49.7]} 13... Kf8 {[%clk
0:02:28.9]} 14. Bf4 {[%clk 0:02:41.6]} 14... Bd6 {[%clk 0:02:25.9]} 15. Rf5
{[%clk 0:02:41.7]} 15... g6 {[%clk 0:02:24]} 16. Bxd6+ {[%clk 0:02:39.4]} 16...
Qxd6 {[%clk 0:02:23.8]} 17. Re5 {[%clk 0:02:37.9]} 17... Kg7 {[%clk 0:02:23.6]}
18. Nd2 {[%clk 0:02:24.6]} 18... Rhe8 {[%clk 0:02:06.7]} 19. f4 {[%clk
0:02:23.3]} 19... Rad8 {[%clk 0:01:51.6]} 20. Rxe8 {[%clk 0:01:55.7]} 20... Rxe8
{[%clk 0:01:43.1]} 21. Qf1 {[%clk 0:01:55.6]} 21... Rd8 {[%clk 0:01:41.9]} 22.
Bxg6 {[%clk 0:01:55.7]} 22... fxg6 {[%clk 0:01:40.8]} 23. Nb3 {[%clk 0:01:51.6]}
23... Qd3 {[%clk 0:01:29.9]} 24. Qe1 {[%clk 0:01:43.2]} 24... Re8 {[%clk
0:01:28.7]} 25. Qd1 {[%clk 0:01:40.5]} 25... Qxd1+ {[%clk 0:01:26.4]} 26. Rxd1
{[%clk 0:01:41.4]} 26... Re2 {[%clk 0:01:26.7]} 27. Nd4 {[%clk 0:01:42.3]} 27...
Rxg2+ {[%clk 0:01:26.2]} 28. Kf1 {[%clk 0:01:42.9]} 28... Rxb2 {[%clk
0:01:26.3]} 29. Ne6+ {[%clk 0:01:40.4]} 29... Kf7 {[%clk 0:01:25.2]} 30. Nd8+
{[%clk 0:01:40.7]} 30... Ke7 {[%clk 0:01:24.6]} 31. Nxc6+ {[%clk 0:01:37.4]}
31... bxc6 {[%clk 0:01:24.3]} 32. Re1+ {[%clk 0:01:38.1]} 32... Kd6 {[%clk
0:01:23.9]} 33. Rd1+ {[%clk 0:01:38.7]} 33... Ke6 {[%clk 0:01:24.1]} 34. Re1+
{[%clk 0:01:38.1]} 0-1

[Event "*** Titled Tuesday Blitz"]
[Site "Chess.com"]
[Date "2020.11.10"]
[Round "11"]
[White "mamonika"]
[Black "Omk124"]
[Result "0-1"]
[WhiteElo "2067"]
[BlackElo "2393"]
[TimeControl "180+1"]
[EndTime "12:10:11 PST"]
[Termination "Omk124 won by checkmate"]

1. d4 {[%clk 0:03:00.9]} 1... Nf6 {[%clk 0:02:59.7]} 2. c4 {[%clk 0:03:00.1]}
2... g6 {[%clk 0:02:59.7]} 3. Nc3 {[%clk 0:02:59.9]} 3... d5 {[%clk 0:02:59.9]}
4. cxd5 {[%clk 0:02:59.2]} 4... Nxd5 {[%clk 0:03:00.8]} 5. e4 {[%clk 0:02:59.5]}
5... Nxc3 {[%clk 0:03:01.3]} 6. bxc3 {[%clk 0:03:00.4]} 6... Bg7 {[%clk
0:03:01.7]} 7. Bc4 {[%clk 0:02:57.6]} 7... c5 {[%clk 0:03:01.6]} 8. Be3 {[%clk
0:02:55.9]} 8... Nc6 {[%clk 0:02:59.7]} 9. Nf3 {[%clk 0:02:44.4]} 9... Bg4
{[%clk 0:02:57.1]} 10. Bxf7+ {[%clk 0:02:30.7]} 10... Kxf7 {[%clk 0:02:55]} 11.
Ng5+ {[%clk 0:02:30.5]} 11... Ke8 {[%clk 0:02:53.6]} 12. Qxg4 {[%clk 0:02:30.4]}
12... cxd4 {[%clk 0:02:54]} 13. Ne6 {[%clk 0:02:26.3]} 13... Qa5 {[%clk
0:02:52.7]} 14. Nxg7+ {[%clk 0:02:19.2]} 14... Kf7 {[%clk 0:02:52.5]} 15. Ne6
{[%clk 0:01:56.9]} 15... Qxc3+ {[%clk 0:02:50.2]} 16. Ke2 {[%clk 0:01:57.2]}
16... d3+ {[%clk 0:02:48.5]} 17. Kd1 {[%clk 0:01:35.1]} 17... Qxa1+ {[%clk
0:02:48.1]} 18. Bc1 {[%clk 0:01:35.3]} 18... d2 {[%clk 0:02:33]} 19. Ng5+ {[%clk
0:01:32]} 19... Kg7 {[%clk 0:02:32.1]} 20. Kxd2 {[%clk 0:01:30.9]} 20... Rhd8+
{[%clk 0:02:30.6]} 21. Ke3 {[%clk 0:01:25.8]} 21... Qc3+ {[%clk 0:02:25.5]} 22.
Ke2 {[%clk 0:01:20.1]} 22... Qc2+ {[%clk 0:02:21.9]} 23. Ke3 {[%clk 0:01:06.6]}
23... Rd3+ {[%clk 0:02:21.6]} 24. Kf4 {[%clk 0:01:02]} 24... Rf8+ {[%clk
0:02:20.5]} 25. Nf7 {[%clk 0:01:01.7]} 25... Rxf7+ {[%clk 0:02:20.6]} 26. Kg5
{[%clk 0:01:00.8]} 26... h6+ {[%clk 0:02:17.6]} 27. Kh4 {[%clk 0:00:59.7]} 27...
Qxf2+ {[%clk 0:02:17.7]} 28. g3 {[%clk 0:00:57]} 28... g5+ {[%clk 0:02:17.3]}
29. Kh5 {[%clk 0:00:55.1]} 29... Qf6 {[%clk 0:02:14.9]} 30. Qe2 {[%clk
0:00:41.2]} 30... Ne5 {[%clk 0:02:12.3]} 31. Bxg5 {[%clk 0:00:34.6]} 31... Qxg5#
{[%clk 0:02:12.2]} 0-1

[Event "*** Titled Tuesday Blitz"]
[Site "Chess.com"]
[Date "2020.11.10"]
[Round "11"]
[White "wnstop"]
[Black "djano"]
[Result "1-0"]
[WhiteElo "2697"]
[BlackElo "2480"]
[TimeControl "180+1"]
[EndTime "12:10:33 PST"]
[Termination "wnstop won by resignation"]

1. e4 {[%clk 0:03:00.9]} 1... e5 {[%clk 0:02:56.4]} 2. Nf3 {[%clk 0:03:00.1]}
2... Nc6 {[%clk 0:02:56.9]} 3. Bc4 {[%clk 0:03:00]} 3... Nf6 {[%clk 0:02:53.2]}
4. d3 {[%clk 0:02:59.9]} 4... Bc5 {[%clk 0:02:51.9]} 5. O-O {[%clk 0:02:58.1]}
5... O-O {[%clk 0:02:50.3]} 6. Re1 {[%clk 0:02:58]} 6... a6 {[%clk 0:02:48.3]}
7. c3 {[%clk 0:02:57.1]} 7... Na5 {[%clk 0:02:43.3]} 8. Nxe5 {[%clk 0:02:27.4]}
8... Nxc4 {[%clk 0:02:39.3]} 9. Nxc4 {[%clk 0:02:26.5]} 9... d5 {[%clk
0:02:30.4]} 10. exd5 {[%clk 0:02:25.9]} 10... Qxd5 {[%clk 0:02:29.1]} 11. Bf4
{[%clk 0:02:19.1]} 11... Bf5 {[%clk 0:02:15.9]} 12. Re5 {[%clk 0:01:59.4]} 12...
Bxf2+ {[%clk 0:02:02.4]} 13. Kxf2 {[%clk 0:01:46]} 13... Ng4+ {[%clk 0:02:02.1]}
14. Qxg4 {[%clk 0:01:41.5]} 14... Qxe5 {[%clk 0:01:35]} 15. Nxe5 {[%clk
0:01:39]} 15... Bxg4 {[%clk 0:01:35.4]} 16. Nxg4 {[%clk 0:01:39.2]} 16... c5
{[%clk 0:01:35.5]} 17. Be3 {[%clk 0:01:21.8]} 17... Rfd8 {[%clk 0:01:33.7]} 18.
d4 {[%clk 0:01:20.6]} 18... cxd4 {[%clk 0:01:33]} 19. Bxd4 {[%clk 0:01:20.5]}
19... b5 {[%clk 0:01:26.9]} 20. Nd2 {[%clk 0:01:20]} 20... b4 {[%clk 0:01:27.5]}
21. Ne3 {[%clk 0:01:16.5]} 21... a5 {[%clk 0:01:27]} 22. Ndc4 {[%clk 0:01:15.3]}
22... bxc3 {[%clk 0:01:25.8]} 23. bxc3 {[%clk 0:01:14.9]} 23... a4 {[%clk
0:01:26.2]} 24. Rb1 {[%clk 0:01:11.7]} 24... Rab8 {[%clk 0:01:25.1]} 25. Nb6
{[%clk 0:01:08.2]} 25... a3 {[%clk 0:01:23.3]} 26. Rb3 {[%clk 0:01:06.4]} 26...
f6 {[%clk 0:01:22.6]} 27. Rxa3 {[%clk 0:01:06.2]} 27... h5 {[%clk 0:01:23.1]}
28. Rb3 {[%clk 0:01:04.4]} 28... Rb7 {[%clk 0:01:23]} 29. a4 {[%clk 0:01:04.1]}
1-0

[Event "*** Titled Tuesday Blitz"]
[Site "Chess.com"]
[Date "2020.11.10"]
[Round "11"]
[White "Sergienko_Sergey"]
[Black "PlotnikovPavel"]
[Result "1/2-1/2"]
[WhiteElo "2287"]
[BlackElo "2436"]
[TimeControl "180+1"]
[EndTime "12:10:34 PST"]
[Termination "Game drawn by repetition"]

1. e4 {[%clk 0:02:59.5]} 1... e5 {[%clk 0:02:56.7]} 2. Nf3 {[%clk 0:02:58.7]}
2... Nc6 {[%clk 0:02:56.6]} 3. Bb5 {[%clk 0:02:57.9]} 3... a6 {[%clk 0:02:56.7]}
4. Ba4 {[%clk 0:02:55.4]} 4... Nf6 {[%clk 0:02:57]} 5. Qe2 {[%clk 0:02:53.4]}
5... d6 {[%clk 0:02:53.6]} 6. c3 {[%clk 0:02:51.9]} 6... g6 {[%clk 0:02:53.4]}
7. h3 {[%clk 0:02:50.2]} 7... Bg7 {[%clk 0:02:53.5]} 8. O-O {[%clk 0:02:50]}
8... O-O {[%clk 0:02:53.5]} 9. d3 {[%clk 0:02:46.1]} 9... Nd7 {[%clk 0:02:53.8]}
10. Nbd2 {[%clk 0:02:28.3]} 10... Nc5 {[%clk 0:02:48.1]} 11. Bc2 {[%clk
0:02:27.6]} 11... Ne6 {[%clk 0:02:46.3]} 12. Nc4 {[%clk 0:02:17.9]} 12... f5
{[%clk 0:02:45.4]} 13. exf5 {[%clk 0:02:14.6]} 13... gxf5 {[%clk 0:02:46.3]} 14.
a4 {[%clk 0:02:00]} 14... d5 {[%clk 0:02:39.8]} 15. Ncxe5 {[%clk 0:01:57.2]}
15... Nxe5 {[%clk 0:02:34.3]} 16. Nxe5 {[%clk 0:01:57.1]} 16... Re8 {[%clk
0:02:09.2]} 17. d4 {[%clk 0:01:53.7]} 17... c5 {[%clk 0:02:05.9]} 18. Bxf5
{[%clk 0:01:25]} 18... Nxd4 {[%clk 0:01:57.6]} 19. Bxh7+ {[%clk 0:01:22.2]}
19... Kxh7 {[%clk 0:01:50.5]} 20. cxd4 {[%clk 0:01:12.5]} 20... cxd4 {[%clk
0:01:48.9]} 21. Qh5+ {[%clk 0:01:08.7]} 21... Kg8 {[%clk 0:01:48.1]} 22. Qf7+
{[%clk 0:00:45.9]} 22... Kh7 {[%clk 0:01:46.8]} 23. Qh5+ {[%clk 0:00:34.9]}
23... Kg8 {[%clk 0:01:43.5]} 24. Qf7+ {[%clk 0:00:34.8]} 24... Kh8 {[%clk
0:01:41.5]} 25. Qh5+ {[%clk 0:00:34.1]} 25... Kg8 {[%clk 0:01:40.5]} 1/2-1/2

[Event "*** Titled Tuesday Blitz"]
[Site "Chess.com"]
[Date "2020.11.10"]
[Round "11"]
[White "Evachess2006"]
[Black "AntonovaNadezhda"]
[Result "0-1"]
[WhiteElo "1619"]
[BlackElo "2110"]
[TimeControl "180+1"]
[EndTime "12:10:35 PST"]
[Termination "AntonovaNadezhda won on time"]

1. e4 {[%clk 0:02:59.5]} 1... c5 {[%clk 0:02:59.9]} 2. c3 {[%clk 0:02:30.3]}
2... d5 {[%clk 0:02:58.2]} 3. exd5 {[%clk 0:02:14.8]} 3... Qxd5 {[%clk
0:02:58.6]} 4. d4 {[%clk 0:02:13.1]} 4... Nc6 {[%clk 0:02:57.9]} 5. Nf3 {[%clk
0:02:00.6]} 5... Bg4 {[%clk 0:02:57.6]} 6. Be2 {[%clk 0:01:54.5]} 6... e6 {[%clk
0:02:57.2]} 7. h3 {[%clk 0:01:34.6]} 7... Bh5 {[%clk 0:02:54.3]} 8. Bf4 {[%clk
0:01:14.2]} 8... Nf6 {[%clk 0:02:52.3]} 9. O-O {[%clk 0:00:56.9]} 9... Be7
{[%clk 0:02:49.4]} 10. Ne5 {[%clk 0:00:38.8]} 10... Bxe2 {[%clk 0:02:46.1]} 11.
Qxe2 {[%clk 0:00:34.9]} 11... cxd4 {[%clk 0:02:44]} 12. Nxc6 {[%clk 0:00:28.9]}
12... Qxc6 {[%clk 0:02:42]} 13. cxd4 {[%clk 0:00:27.6]} 13... O-O {[%clk
0:02:41.9]} 14. Nc3 {[%clk 0:00:20.9]} 14... Rfd8 {[%clk 0:02:41.4]} 15. Rfd1
{[%clk 0:00:16]} 15... a6 {[%clk 0:02:39.1]} 16. Rac1 {[%clk 0:00:14]} 16... Qd7
{[%clk 0:02:38.6]} 17. Be5 {[%clk 0:00:11.1]} 17... Nd5 {[%clk 0:02:31.1]} 18.
Nxd5 {[%clk 0:00:08.7]} 18... Qxd5 {[%clk 0:02:30.9]} 19. Rc3 {[%clk 0:00:06.9]}
19... Bd6 {[%clk 0:02:20.6]} 20. Bxd6 {[%clk 0:00:05.8]} 20... Qxd6 {[%clk
0:02:20.3]} 21. Qe3 {[%clk 0:00:04.2]} 21... Rac8 {[%clk 0:02:16.2]} 22. Rcd3
{[%clk 0:00:03.1]} 22... Qd5 {[%clk 0:02:13.4]} 23. Qf3 {[%clk 0:00:01]} 23...
Rc2 {[%clk 0:02:06.4]} 24. Kf1 {[%clk 0:00:01]} 24... Rxb2 {[%clk 0:02:04.8]}
0-1

[Event "*** Titled Tuesday Blitz"]
[Site "Chess.com"]
[Date "2020.11.10"]
[Round "11"]
[White "PawnEatingZombie"]
[Black "Boudicca64"]
[Result "1-0"]
[WhiteElo "2147"]
[BlackElo "1846"]
[TimeControl "180+1"]
[EndTime "12:10:37 PST"]
[Termination "PawnEatingZombie won by resignation"]

1. d4 {[%clk 0:03:00.9]} 1... g6 {[%clk 0:02:57.6]} 2. e4 {[%clk 0:03:00.1]}
2... Bg7 {[%clk 0:02:56.2]} 3. Nc3 {[%clk 0:03:00.2]} 3... c5 {[%clk 0:02:54.6]}
4. d5 {[%clk 0:02:53.6]} 4... d6 {[%clk 0:02:52.7]} 5. Nf3 {[%clk 0:02:49.9]}
5... Nf6 {[%clk 0:02:50.7]} 6. Be2 {[%clk 0:02:49]} 6... O-O {[%clk 0:02:48.8]}
7. O-O {[%clk 0:02:49.5]} 7... e6 {[%clk 0:02:48.6]} 8. Nd2 {[%clk 0:02:44.7]}
8... a6 {[%clk 0:02:45.3]} 9. a4 {[%clk 0:02:44.1]} 9... exd5 {[%clk 0:02:38.2]}
10. exd5 {[%clk 0:02:45]} 10... Bf5 {[%clk 0:02:34.4]} 11. Nc4 {[%clk
0:02:43.9]} 11... Ne4 {[%clk 0:02:24.6]} 12. Nxe4 {[%clk 0:02:41.7]} 12... Bxe4
{[%clk 0:02:22.7]} 13. Bf4 {[%clk 0:02:28.5]} 13... Qf6 {[%clk 0:02:10.8]} 14.
Bg3 {[%clk 0:01:55.1]} 14... Nd7 {[%clk 0:02:01.5]} 15. Nxd6 {[%clk 0:01:53.1]}
15... Bf5 {[%clk 0:01:49.7]} 16. c3 {[%clk 0:01:51.6]} 16... Ne5 {[%clk
0:01:45.4]} 17. Nxf5 {[%clk 0:01:40.5]} 17... Qxf5 {[%clk 0:01:43.7]} 18. Qd2
{[%clk 0:01:29.2]} 18... Rfe8 {[%clk 0:01:34.9]} 19. Rfe1 {[%clk 0:01:28.3]}
19... Rad8 {[%clk 0:01:28]} 20. Bf1 {[%clk 0:01:26.6]} 20... c4 {[%clk
0:01:22.8]} 21. Rad1 {[%clk 0:01:21.7]} 21... b5 {[%clk 0:01:09.4]} 22. axb5
{[%clk 0:01:20.5]} 22... axb5 {[%clk 0:01:08.4]} 23. h3 {[%clk 0:01:21.4]} 23...
Rd7 {[%clk 0:01:00.1]} 24. f4 {[%clk 0:01:20.4]} 1-0

[Event "*** Titled Tuesday Blitz"]
[Site "Chess.com"]
[Date "2020.11.10"]
[Round "11"]
[White "NateSolon"]
[Black "Gusarov91"]
[Result "1/2-1/2"]
[WhiteElo "2498"]
[BlackElo "2639"]
[TimeControl "180+1"]
[EndTime "12:10:46 PST"]
[Termination "Game drawn by agreement"]

1. d4 {[%clk 0:03:00.9]} 1... Nf6 {[%clk 0:02:59.3]} 2. c4 {[%clk 0:03:00.8]}
2... g6 {[%clk 0:02:59.4]} 3. Nc3 {[%clk 0:03:00.8]} 3... d5 {[%clk 0:02:59.9]}
4. Bf4 {[%clk 0:03:00.7]} 4... c6 {[%clk 0:02:59.3]} 5. e3 {[%clk 0:03:00.1]}
5... Bg7 {[%clk 0:02:59.9]} 6. Rc1 {[%clk 0:02:59.5]} 6... O-O {[%clk
0:02:59.8]} 7. Nf3 {[%clk 0:02:58.6]} 7... a6 {[%clk 0:02:59.5]} 8. h3 {[%clk
0:02:55]} 8... Nbd7 {[%clk 0:02:49]} 9. cxd5 {[%clk 0:02:52.7]} 9... cxd5 {[%clk
0:02:48.4]} 10. Qb3 {[%clk 0:02:50.8]} 10... e6 {[%clk 0:02:48.4]} 11. Be2
{[%clk 0:02:47.4]} 11... Ne4 {[%clk 0:02:34.5]} 12. O-O {[%clk 0:02:37.3]} 12...
Nxc3 {[%clk 0:02:30.8]} 13. Rxc3 {[%clk 0:02:31.5]} 13... Qb6 {[%clk 0:02:27.1]}
14. Rfc1 {[%clk 0:02:26.8]} 14... Qxb3 {[%clk 0:02:26.7]} 15. Rxb3 {[%clk
0:02:27.7]} 15... f6 {[%clk 0:02:21.1]} 16. Bd6 {[%clk 0:02:21.6]} 16... Re8
{[%clk 0:02:21.3]} 17. Rc7 {[%clk 0:02:19.7]} 17... Nb8 {[%clk 0:02:08.6]} 18.
Rbc3 {[%clk 0:01:53.7]} 18... Nc6 {[%clk 0:02:08.7]} 19. b4 {[%clk 0:01:53.7]}
19... Rd8 {[%clk 0:02:00.6]} 20. Bc5 {[%clk 0:01:46.8]} 20... Rd7 {[%clk
0:01:58.9]} 21. Rxd7 {[%clk 0:01:44.6]} 21... Bxd7 {[%clk 0:01:59.2]} 22. a4
{[%clk 0:01:43]} 22... Rc8 {[%clk 0:01:50.4]} 23. b5 {[%clk 0:01:36]} 23... axb5
{[%clk 0:01:50.3]} 24. axb5 {[%clk 0:01:34.6]} 24... Na5 {[%clk 0:01:46.7]} 25.
Ra3 {[%clk 0:01:34.3]} 25... Nc4 {[%clk 0:01:46.6]} 26. Ra7 {[%clk 0:01:33.3]}
26... Bxb5 {[%clk 0:01:43]} 27. Rxb7 {[%clk 0:01:30]} 27... Bc6 {[%clk 0:01:43]}
28. Re7 {[%clk 0:01:25.5]} 28... Re8 {[%clk 0:01:42.8]} 29. Rc7 {[%clk
0:01:24.3]} 29... Bb5 {[%clk 0:01:43]} 30. g4 {[%clk 0:01:16.7]} 30... Nd6
{[%clk 0:01:37.3]} 31. Bxb5 {[%clk 0:01:11.7]} 31... Nxb5 {[%clk 0:01:37.7]} 32.
Rb7 {[%clk 0:01:12]} 32... Nc3 {[%clk 0:01:37.8]} 33. Kg2 {[%clk 0:01:03.4]}
33... Ne4 {[%clk 0:01:37.7]} 34. Bb4 {[%clk 0:01:03.2]} 34... g5 {[%clk
0:01:32.2]} 35. Nd2 {[%clk 0:01:00.4]} 35... Nxd2 {[%clk 0:01:29.2]} 36. Bxd2
{[%clk 0:01:01.3]} 36... Bf8 {[%clk 0:01:29.5]} 37. Bb4 {[%clk 0:00:59.1]}
1/2-1/2

[Event "*** Titled Tuesday Blitz"]
[Site "Chess.com"]
[Date "2020.11.10"]
[Round "11"]
[White "nochewycandy"]
[Black "Harsha_Bharathakoti"]
[Result "0-1"]
[WhiteElo "2527"]
[BlackElo "2777"]
[TimeControl "180+1"]
[EndTime "12:10:46 PST"]
[Termination "Harsha_Bharathakoti won by resignation"]

1. e4 {[%clk 0:03:00.9]} 1... e6 {[%clk 0:02:56.9]} 2. Nf3 {[%clk 0:02:52.7]}
2... d5 {[%clk 0:02:56.8]} 3. Nc3 {[%clk 0:02:53.3]} 3... Nf6 {[%clk 0:02:49.4]}
4. e5 {[%clk 0:02:51.9]} 4... Nfd7 {[%clk 0:02:42.9]} 5. d4 {[%clk 0:02:50.5]}
5... c5 {[%clk 0:02:43.4]} 6. Bg5 {[%clk 0:02:49.9]} 6... Qb6 {[%clk 0:02:42.5]}
7. dxc5 {[%clk 0:02:50]} 7... Bxc5 {[%clk 0:02:41.8]} 8. Qd2 {[%clk 0:02:50.5]}
8... Nc6 {[%clk 0:02:39.4]} 9. O-O-O {[%clk 0:02:50.3]} 9... h6 {[%clk
0:02:25.2]} 10. Bf4 {[%clk 0:02:47.8]} 10... g5 {[%clk 0:02:21]} 11. Bg3 {[%clk
0:02:47.1]} 11... g4 {[%clk 0:02:21.2]} 12. Na4 {[%clk 0:02:40.7]} 12... Qb4
{[%clk 0:02:17.4]} 13. Nxc5 {[%clk 0:02:39]} 13... Qxd2+ {[%clk 0:02:14.4]} 14.
Rxd2 {[%clk 0:02:37.3]} 14... Nxc5 {[%clk 0:02:15.3]} 15. Nd4 {[%clk 0:02:36.2]}
15... Ne4 {[%clk 0:02:13.9]} 16. Rd1 {[%clk 0:02:26.3]} 16... Nxg3 {[%clk
0:02:13.8]} 17. hxg3 {[%clk 0:02:24]} 17... Nxe5 {[%clk 0:02:14.7]} 18. f4
{[%clk 0:02:17.6]} 18... gxf3 {[%clk 0:02:11.3]} 19. gxf3 {[%clk 0:02:18.5]}
19... Bd7 {[%clk 0:02:10.2]} 20. f4 {[%clk 0:02:17.8]} 20... Nc6 {[%clk
0:02:05.5]} 21. Nf3 {[%clk 0:02:11.7]} 21... Ke7 {[%clk 0:02:04.5]} 22. Bd3
{[%clk 0:02:09.2]} 22... Rag8 {[%clk 0:02:02.1]} 23. Rdg1 {[%clk 0:02:09.8]}
23... f6 {[%clk 0:01:57.9]} 24. Rh5 {[%clk 0:02:01.1]} 24... Be8 {[%clk
0:01:57]} 25. Rh4 {[%clk 0:01:59.7]} 25... e5 {[%clk 0:01:55.5]} 26. fxe5 {[%clk
0:01:59.5]} 26... fxe5 {[%clk 0:01:56.4]} 27. Bb5 {[%clk 0:01:59.8]} 27... e4
{[%clk 0:01:45.5]} 28. Bxc6 {[%clk 0:01:58.8]} 28... bxc6 {[%clk 0:01:46.4]} 29.
Nd4 {[%clk 0:01:57.6]} 29... Bd7 {[%clk 0:01:42.3]} 30. b4 {[%clk 0:01:55.6]}
30... Rg6 {[%clk 0:01:34]} 31. Kd2 {[%clk 0:01:53.5]} 31... Kd6 {[%clk
0:01:31.3]} 32. c4 {[%clk 0:01:40.1]} 32... c5 {[%clk 0:01:26.5]} 33. bxc5+
{[%clk 0:01:40]} 33... Kxc5 {[%clk 0:01:27.4]} 34. Nb3+ {[%clk 0:01:40.2]} 34...
Kxc4 {[%clk 0:01:25.8]} 35. Rc1+ {[%clk 0:01:40.1]} 35... Kb4 {[%clk 0:01:25.9]}
36. Nc5 {[%clk 0:01:34.1]} 36... Bb5 {[%clk 0:01:15.1]} 37. Rh5 {[%clk
0:01:28.3]} 37... Bc4 {[%clk 0:01:10]} 38. Nb3 {[%clk 0:01:21.3]} 38... Rxg3
{[%clk 0:01:08]} 39. Nd4 {[%clk 0:01:21.6]} 39... Rd3+ {[%clk 0:01:07.2]} 0-1

[Event "*** Titled Tuesday Blitz"]
[Site "Chess.com"]
[Date "2020.11.10"]
[Round "11"]
[White "Morshynska"]
[Black "MartinMatthiesen"]
[Result "0-1"]
[WhiteElo "2243"]
[BlackElo "2402"]
[TimeControl "180+1"]
[EndTime "12:11:02 PST"]
[Termination "MartinMatthiesen won by resignation"]

1. Nf3 {[%clk 0:03:00.9]} 1... d5 {[%clk 0:02:59.3]} 2. g3 {[%clk 0:03:01.2]}
2... g6 {[%clk 0:02:59]} 3. d4 {[%clk 0:03:00.1]} 3... Bg7 {[%clk 0:02:58.9]} 4.
Bg2 {[%clk 0:03:00.5]} 4... Nf6 {[%clk 0:02:52.8]} 5. O-O {[%clk 0:03:00.8]}
5... O-O {[%clk 0:02:53]} 6. c4 {[%clk 0:03:01.3]} 6... dxc4 {[%clk 0:02:47.7]}
7. Qa4 {[%clk 0:02:56.1]} 7... Nc6 {[%clk 0:02:39.7]} 8. Qxc4 {[%clk 0:02:54]}
8... Be6 {[%clk 0:02:37.8]} 9. Qd3 {[%clk 0:02:48.4]} 9... Bf5 {[%clk
0:02:30.7]} 10. Qd1 {[%clk 0:02:43.5]} 10... Ne4 {[%clk 0:01:49.5]} 11. e3
{[%clk 0:02:33.8]} 11... e5 {[%clk 0:01:27.8]} 12. dxe5 {[%clk 0:02:34.7]} 12...
Nxe5 {[%clk 0:01:26.4]} 13. Nxe5 {[%clk 0:02:33.4]} 13... Bxe5 {[%clk
0:01:21.7]} 14. Nd2 {[%clk 0:02:30.7]} 14... Nxd2 {[%clk 0:01:19.4]} 15. Qxd2
{[%clk 0:02:30.5]} 15... Qxd2 {[%clk 0:01:18.2]} 16. Bxd2 {[%clk 0:02:31.4]}
16... Bxb2 {[%clk 0:01:18.6]} 17. Bxb7 {[%clk 0:02:15.3]} 17... Rab8 {[%clk
0:01:14.3]} 18. Bg2 {[%clk 0:02:06.4]} 18... Bxa1 {[%clk 0:01:13.4]} 19. Rxa1
{[%clk 0:02:07.3]} 19... Rb1+ {[%clk 0:01:10.9]} 20. Rxb1 {[%clk 0:02:05.4]}
20... Bxb1 {[%clk 0:01:11.8]} 21. Bb4 {[%clk 0:01:46.2]} 21... Rd8 {[%clk
0:01:09.6]} 22. Bf3 {[%clk 0:01:40]} 22... Bxa2 {[%clk 0:01:08.3]} 23. h4 {[%clk
0:01:37.3]} 23... Bd5 {[%clk 0:01:06.8]} 24. Be2 {[%clk 0:01:36.1]} 24... Rb8
{[%clk 0:00:59.2]} 25. Be1 {[%clk 0:01:28.3]} 25... Rb1 {[%clk 0:00:57.8]} 26.
Kf1 {[%clk 0:01:28.6]} 26... Bg2+ {[%clk 0:00:56.2]} 27. Kxg2 {[%clk 0:01:27.8]}
27... Rxe1 {[%clk 0:00:56.8]} 28. Kf3 {[%clk 0:01:22.6]} 28... a5 {[%clk
0:00:55.7]} 29. Bb5 {[%clk 0:01:21.1]} 29... Rb1 {[%clk 0:00:54.7]} 30. Bd7
{[%clk 0:01:19.1]} 30... Rb4 {[%clk 0:00:52.4]} 31. e4 {[%clk 0:01:15.7]} 31...
a4 {[%clk 0:00:52.1]} 32. e5 {[%clk 0:01:15.2]} 32... a3 {[%clk 0:00:51.7]} 33.
e6 {[%clk 0:01:15.6]} 33... Kf8 {[%clk 0:00:51.2]} 0-1